[Event "FIDE CB Open 2022"]
[Site "Ceske Budejovice"]
[Date "2022.07.06"]
[Round "6.45"]
[White "Stastna, Martina"]
[Black "Kukacka, Ladislav"]
[Result "1-0"]
[ECO "B09"]
[WhiteElo "1912"]
[BlackElo "1555"]
[Annotator "TA"]
[PlyCount "85"]
[EventDate "2022.07.01"]
[EventType "swiss"]
[EventCountry "CZE"]
[SourceTitle "playchess.com"]
[Source "ChessBase"]
[SourceQuality "1"]
[TimeControl "40/5400+30:1800+30"]

{[%evp 11,85,35,18,-14,-12,-12,13,20,22,19,18,32,42,-1,14,0,0,0,147,117,122,112,477,463,595,559,725,742,720,691,796,794,770,622,600,504,535,531,531,497,522,535,520,518,527,501,591,528,618,599,611,600,845,849,1018,1018,1612,1582,12835,6531,12837,12836,12836,6930,12837,12837,12841,12842,12842,12843,12843,12843,12844,12843,29996,29997]} 1. e4 {[%emt 0:00:05]} g6 {[%emt 0:00:43]} 2. d4 {[%emt 0:00:20]} Bg7 {[%emt 0:00:21]} 3. Nc3 {[%emt 0:00:40]} d6 {[%emt 0:00:41]} 4. f4 {[%emt 0:02:48]} Nf6 {[%emt 0:01:55]} 5. Nf3 {[%emt 0:01:52]} O-O {[%emt 0:01:41]} 6. Bd3 {[%emt 0:00:58]} Nc6 {[%emt 0:01:32]} 7. a3 {[%emt 0:05:13] B09: Pirc Defence: Austrian Attack.} Bg4 {[%emt 0:02:19]} 8. Be3 {[%emt 0:04:33]} Nd7 {[%emt 0:05:10][%cal Oc6d4]} 9. e5 {[%emt 0:08:41] The position is equal.} dxe5 {[%emt 0:02:13]} 10. dxe5 {[%emt 0:00:34]} f6 {[%emt 0:09:26] [#]} 11. exf6 $146 {[%emt 0:10:31]} ({Predecessor:} 11. Bc4+ e6 12. exf6 Nxf6 13. Qe2 Nh5 14. g3 Kh8 15. Bc5 Re8 16. Rd1 Bxc3+ 17. bxc3 Qf6 18. Qe3 e5 19. O-O exf4 20. Qf2 Qxc3 21. Bd5 Re3 22. Bxc6 Qxc5 {½-½ (22) Blutharsch,W (1759)-Ponnath,K (1644) Bergen 2012}) 11... Nxf6 {[%emt 0:00:34]} 12. Bc4+ {[%emt 0:08:24]} Kh8 {[%emt 0:01:37]} 13. Qxd8 {[%emt 0:01:19]} Raxd8 {[%emt 0:05:54]} 14. Ng5 $1 {[%emt 0:01:12]} e6 {[%emt 0:05:09]} (14... Nd4 $11 {remains equal.} 15. Bxd4 Rxd4 16. Nf7+ Kg8 17. Ne5+ Kh8) 15. Bc5 {[%emt 0:02:30] [#] h3 is the strong threat.} ({But not} 15. Bxe6 $2 Rde8 16. Nf7+ {[#]} Rxf7 $1 {[%mdl 512]} 17. Bxf7 Rxe3+ 18. Kf2 Re7 $19) ({Avoid the trap} 15. Nxe6 $2 Bxe6 16. Bxe6 Rfe8 $19) 15... Nd4 {[%emt 0:04:11]} 16. Rc1 {[%emt 0:07:02]} Nxc2+ $2 {[%emt 0:06:55][%mdl 8192] Black cannot hold the game after this.} 17. Rxc2 $18 {[%emt 0:05:10]} Nh5 {[%emt 0:01:31]} 18. O-O {[%emt 0:01:38]} Bd4+ {[%emt 0:06:02]} 19. Bxd4+ {[%emt 0:02:11]} Rxd4 {[%emt 0:00:20]} 20. Bxe6 {[%emt 0:01:00]} Rdxf4 {[%emt 0:03:47]} 21. Rxf4 {[%emt 0:01:19]} Rxf4 {[%emt 0:00:50]} 22. Bxg4 {[%emt 0:01:17]} Rxg4 {[%emt 0:00:19]} 23. Ne6 {[%emt 0:00:57]} Rc4 {[%emt 0:02:55]} 24. Rf2 {[%emt 0:00:46][%cal Rf2f8] Prevents Nf4.} h6 {[%emt 0:02:09]} 25. Rf8+ {[%emt 0:03:27]} Kh7 {[%emt 0:00:13]} 26. Rf7+ {[%emt 0:01:44]} Kg8 {[%emt 0:01:21]} 27. Rxc7 {[%emt 0:00:57]} Rxc7 {[%emt 0:00:20]} 28. Nxc7 {[%emt 0:00:30]} Kg7 {[%emt 0:00:59]} 29. N3b5 {[%emt 0:00:40]} Nf4 {[%emt 0:02:39]} 30. Nxa7 {[%emt 0:01:10]} Nd3 {[%emt 0:00:26]} 31. b4 {[%emt 0:02:00]} Kf7 {[%emt 0:00:22]} 32. Nc8 {[%emt 0:02:38] Threatens to win with Nd6+.} Kf6 {[%emt 0:02:03]} 33. Nd6 {[%emt 0:00:45]} b6 {[%emt 0:00:20]} 34. Nc4 {[%emt 0:00:29]} b5 {[%emt 0:00:52]} 35. Nxb5 {[%emt 0:00:10] Strongly threatening Nc3.} Ke6 {[%emt 0:00:53]} 36. Nc3 {[%emt 0:00:37]} Kd7 {[%emt 0:00:43]} 37. b5 {[%emt 0:00:38] Black must now prevent a4.} Nc5 {[%emt 0:01:40]} 38. a4 {[%emt 0:03:27][%cal Ba3a4,Ba4a5,Ba5a6][%mdl 32]} Kc7 {[%emt 0:00:38]} 39. a5 {[%emt 0:00:32]} Kb7 {[%emt 0:00:41]} 40. Nd5 {[%emt 0:00:45]} g5 {[%emt 0:01:11]} 41. Nb4 {[%emt 0:32:31]} h5 {[%emt 0:30:46]} 42. a6+ {[%emt 0:00:13]} Ka8 {[%emt 0:02:30]} 43. Nc6 {[%emt 0:00:26] Weighted Error Value: White=0.21 (precise) /Black=0.79} 1-0

[Event "FIDE CB Open 2022"]
[Site "Ceske Budejovice"]
[Date "2022.07.06"]
[Round "6.46"]
[White "Holub, Adam"]
[Black "Svoboda, Petr"]
[Result "1-0"]
[ECO "A57"]
[WhiteElo "1817"]
[BlackElo "2088"]
[Annotator "TA"]
[PlyCount "93"]
[EventDate "2022.07.01"]
[EventType "swiss"]
[EventCountry "CZE"]
[SourceTitle "playchess.com"]
[Source "ChessBase"]
[SourceQuality "1"]
[TimeControl "40/5400+30:1800+30"]

{[%evp 18,93,0,16,193,187,259,208,209,196,198,183,222,183,185,202,171,151,139,165,159,158,150,142,152,132,183,170,192,168,162,135,261,253,266,261,283,270,443,415,503,466,466,454,574,560,542,497,530,528,560,563,571,573,583,567,570,552,586,604,547,521,668,618,1053,1039,992,945,1604,1457,29986,29987,29987,29987,29988,29985,29987,29988]} 1. d4 {[%emt 0:00:19]} Nf6 {[%emt 0:00:13]} 2. c4 {[%emt 0:00:35]} c5 {[%emt 0:00:04]} 3. d5 {[%emt 0:00:07]} b5 {[%emt 0:00:05]} 4. cxb5 {[%emt 0:00:25]} a6 {[%emt 0:00:08]} 5. f3 {[%emt 0:00:13]} e6 {[%emt 0:00:31]} 6. e4 {[%emt 0:01:19][%cal Be2e4,Be4e5][%mdl 32]} exd5 {[%emt 0:01:20]} 7. e5 {[%emt 0:02:52]} Qe7 {[%emt 0:02:59]} 8. Qe2 {[%emt 0:00:56]} Ng8 {[%emt 0:01:14]} 9. Nc3 {[%emt 0:01:00]} Bb7 {[%emt 0:01:25]} 10. Nh3 {[%emt 0:02:37]} d6 $2 {[%emt 0:09:53] [#] Black cannot hold the game after this. A57: Benko/Volga Gambit.} (10... Qd8 $11) 11. Nf4 $1 $18 {[%emt 0:07:34]} Qxe5 {[%emt 0:05:16]} (11... d4 $142) 12. Nfxd5 {[%emt 0:08:44]} Qxe2+ {[%emt 0:01:33] White is clearly better.} 13. Bxe2 {[%emt 0:00:19] [#]} Bxd5 $146 {[%emt 0:00:38]} ({Predecessor:} 13... Kd8 14. Nb6 Ra7 15. Bc4 axb5 16. Nxb5 Ra6 17. Nd5 Nd7 18. Bf4 Ngf6 19. Nxf6 gxf6 {1-0 (67) Kanakaris,G (2284)-Karlovich,A (2242) Athens 2008}) 14. Nxd5 {[%emt 0:00:03]} Ra7 {[%emt 0:08:49] Inhibits Nc7+.} 15. b6 {[%emt 0:08:08]} Rb7 {[%emt 0:02:00]} 16. a4 {[%emt 0:01:45] Hoping for a5.} Ne7 {[%emt 0:05:10]} 17. Nc7+ {[%emt 0:02:58]} Kd7 {[%emt 0:02:48]} 18. a5 {[%emt 0:01:27] White is much more active.} ({Don't do} 18. Nxa6 $6 Rxb6 19. Bb5+ Nec6 20. Nxb8+ Rxb8 $16) 18... Rxc7 {[%emt 0:01:55]} 19. bxc7 {[%emt 0:00:09]} Kxc7 {[%emt 0:00:04]} 20. Kf2 {[%emt 0:01:57]} g6 {[%emt 0:04:24]} 21. Bg5 {[%emt 0:08:10]} h6 {[%emt 0:05:16]} (21... Nec6 $16) 22. Bf6 {[%emt 0:02:46]} Rh7 {[%emt 0:00:32]} 23. Rhd1 {[%emt 0:09:09]} Nec6 {[%emt 0:04:24]} 24. Bc4 {[%emt 0:03:57]} Nd7 {[%emt 0:07:10]} (24... Nb4 $16 25. f4 N8c6) 25. Bc3 {[%emt 0:01:40] A strong pair of Bishops.} Ndb8 {[%emt 0:04:32]} 26. Re1 {[%emt 0:11:07]} Kd7 {[%emt 0:09:13]} 27. Rad1 {[%emt 0:01:43]} Bg7 $2 {[%emt 0:03:42]} (27... Be7 28. Re2 h5) 28. Bxf7 {[%emt 0:04:36]} Bxc3 {[%emt 0:00:39]} 29. Be8+ {[%emt 0:00:15]} Kc7 {[%emt 0:00:52]} 30. bxc3 {[%emt 0:00:09]} Nxa5 {[%emt 0:02:28]} 31. Bxg6 {[%emt 0:00:43]} Rd7 {[%emt 0:02:13]} 32. f4 {[%emt 0:02:12]} Nbc6 {[%emt 0:04:33]} 33. g4 {[%emt 0:05:02]} Nc4 {[%emt 0:01:02]} 34. Be8 {[%emt 0:01:35]} Rg7 {[%emt 0:00:40]} 35. Bxc6 {[%emt 0:00:34]} Kxc6 {[%emt 0:00:15][%mdl 4096] Endgame KRR-KRN} 36. Kg3 {[%emt 0:00:21]} a5 {[%emt 0:00:40]} 37. h4 {[%emt 0:00:48][%cal Bh2h4,Bh4g5,Bg5g6][%mdl 32]} a4 {[%emt 0:01:33]} 38. Re6 {[%emt 0:04:43]} a3 {[%emt 0:02:52]} 39. f5 {[%emt 0:04:14]} Kb5 {[%emt 0:03:07]} 40. f6 {[%emt 0:01:12]} Rf7 {[%emt 0:01:35]} 41. g5 {[%emt 0:06:03]} hxg5 {[%emt 0:02:30]} 42. hxg5 {[%emt 0:00:13] aiming for g6.} a2 {[%emt 0:15:19]} 43. g6 {[%emt 0:16:19]} Rf8 {[%emt 0:03:57]} 44. f7 {[%emt 0:01:27] White mates.} Nd2 {[%emt 0:01:31]} 45. Ra1 {[%emt 0:00:59]} Ra8 {[%emt 0:02:01] [#]} 46. Rxa2 $3 {[%emt 0:03:36][%mdl 512]} Rxa2 {[%emt 0:00:27]} (46... Nf1+ 47. Kf3) 47. f8=Q {[%emt 0:00:25] Weighted Error Value: White=0.07 (flawless) /Black=0.52} 1-0

[Event "FIDE CB Open 2022"]
[Site "Ceske Budejovice"]
[Date "2022.07.06"]
[Round "6.47"]
[White "Steinbauer, Sebastian"]
[Black "Svoboda, Daniel"]
[Result "1-0"]
[ECO "B21"]
[WhiteElo "1808"]
[BlackElo "1679"]
[Annotator "NA RC COMBH"]
[PlyCount "22"]
[EventDate "2022.07.01"]
[EventType "swiss"]
[EventCountry "CZE"]
[SourceTitle "playchess.com"]
[Source "ChessBase"]
[SourceQuality "1"]
[TimeControl "40/5400+30:1800+30"]

1. e4 {[%emt 0:00:04]} c5 {[%emt 0:00:08]} 2. d4 {[%emt 0:00:05]} cxd4 {[%emt 0:00:08]} 3. c3 {[%emt 0:00:03]} dxc3 {[%emt 0:00:13]} 4. Nxc3 {[%emt 0:00:07]} Nc6 {[%emt 0:00:19]} 5. Bc4 {[%emt 0:00:05]} e6 {[%emt 0:00:23]} 6. Nf3 {[%emt 0:00:19]} a6 {[%emt 0:00:19]} 7. O-O {[%emt 0:00:11]} Nge7 {[%emt 0:01:37]} 8. Qe2 {[%emt 0:00:00]} Ng6 {[%emt 0:02:22]} 9. Rd1 {[%emt 0:01:01]} Be7 {[%emt 0:02:41]} 10. Qd2 {[%emt 0:09:44]} d6 {[%emt 0:13:43]} 11. Bb3 {[%emt 0:09:30]} O-O {[%emt 0:24:22]} 1-0

[Event "FIDE CB Open 2022"]
[Site "Ceske Budejovice"]
[Date "2022.07.06"]
[Round "6.48"]
[White "Wojdyla, Alex"]
[Black "Hammel, Juergen"]
[Result "1-0"]
[ECO "C56"]
[WhiteElo "1782"]
[BlackElo "1650"]
[Annotator "NA COMBH"]
[PlyCount "83"]
[EventDate "2022.07.01"]
[EventType "swiss"]
[EventCountry "CZE"]
[SourceTitle "playchess.com"]
[Source "ChessBase"]
[SourceQuality "1"]
[TimeControl "40/5400+30:1800+30"]

1. e4 {[%emt 0:00:09]} e5 {[%emt 0:00:07]} 2. Bc4 {[%emt 0:00:04]} Nf6 {[%emt 0:01:00]} 3. d4 {[%emt 0:00:07]} Nc6 {[%emt 0:01:46]} 4. Nf3 {[%emt 0:01:40]} d6 {[%emt 0:00:31]} 5. dxe5 {[%emt 0:04:51]} dxe5 {[%emt 0:04:33]} 6. Qxd8+ {[%emt 0:00:53]} Nxd8 {[%emt 0:00:13]} 7. O-O {[%emt 0:00:44]} Bd6 {[%emt 0:00:48]} 8. Nc3 {[%emt 0:02:06]} h6 {[%emt 0:03:40]} 9. Nb5 {[%emt 0:05:52]} O-O {[%emt 0:04:26]} 10. Nd2 {[%emt 0:06:39]} Be6 {[%emt 0:03:48]} 11. f3 {[%emt 0:00:28]} Bc5+ {[%emt 0:07:49]} 12. Kh1 {[%emt 0:00:14]} c6 {[%emt 0:00:11]} 13. Nc3 {[%emt 0:00:42]} b5 {[%emt 0:05:39]} 14. Bb3 {[%emt 0:05:52]} Bb4 {[%emt 0:06:55]} 15. a4 {[%emt 0:04:53]} Bxc3 {[%emt 0:11:58]} 16. bxc3 {[%emt 0:01:27]} Re8 {[%emt 0:01:17]} 17. Bb2 {[%emt 0:05:37]} Nb7 {[%emt 0:01:39]} 18. c4 {[%emt 0:08:50]} Rad8 {[%emt 0:04:51]} 19. Rfd1 {[%emt 0:01:37]} a6 {[%emt 0:02:41]} 20. axb5 {[%emt 0:08:11]} axb5 {[%emt 0:01:31]} 21. Bxe5 {[%emt 0:03:26]} bxc4 {[%emt 0:00:54]} 22. Bxf6 {[%emt 0:03:18]} gxf6 {[%emt 0:03:07]} 23. Nxc4 {[%emt 0:00:40]} Nc5 {[%emt 0:02:07]} 24. Na5 {[%emt 0:07:44]} Rxd1+ {[%emt 0:03:58]} 25. Rxd1 {[%emt 0:00:05]} Ra8 {[%emt 0:01:40]} 26. Bxe6 {[%emt 0:03:07]} fxe6 {[%emt 0:00:48]} 27. Nxc6 {[%emt 0:01:28]} Ra2 {[%emt 0:01:03]} 28. Rc1 {[%emt 0:05:27]} Na4 {[%emt 0:03:06]} 29. h4 {[%emt 0:00:49]} Nc3 {[%emt 0:01:13]} 30. Nb4 {[%emt 0:02:06]} Rb2 {[%emt 0:00:25]} 31. Nd3 {[%emt 0:00:25]} Ra2 {[%emt 0:00:19]} 32. Nf4 {[%emt 0:00:41]} Kf7 {[%emt 0:00:56]} 33. Kh2 {[%emt 0:01:16]} e5 {[%emt 0:00:23]} 34. Nd5 {[%emt 0:01:24]} Ne2 {[%emt 0:01:11]} 35. Rb1 {[%emt 0:00:33]} Rxc2 {[%emt 0:01:23]} 36. Rb6 {[%emt 0:00:55]} Nd4 {[%emt 0:00:26]} 37. Rxf6+ {[%emt 0:01:07]} Kg7 {[%emt 0:00:17]} 38. h5 {[%emt 0:02:02]} Rc6 {[%emt 0:06:16]} 39. Rxc6 {[%emt 0:00:22]} Nxc6 {[%emt 0:00:06]} 40. Kg3 {[%emt 0:00:00]} Nd4 {[%emt 0:00:00]} 41. Kg4 {[%emt 0:03:47]} Kf7 {[%emt 0:02:05]} 42. Ne3 {[%emt 0:01:30]} 1-0

[Event "FIDE CB Open 2022"]
[Site "Ceske Budejovice"]
[Date "2022.07.06"]
[Round "6.49"]
[White "Travnicek, Jaroslav"]
[Black "Hladky, Mikulas"]
[Result "1-0"]
[ECO "C68"]
[WhiteElo "1730"]
[BlackElo "1549"]
[Annotator "NA RC COMBH"]
[PlyCount "83"]
[EventDate "2022.07.01"]
[EventType "swiss"]
[EventCountry "CZE"]
[SourceTitle "playchess.com"]
[Source "ChessBase"]
[SourceQuality "1"]
[TimeControl "40/5400+30:1800+30"]

1. e4 {[%emt 0:00:11]} e5 {[%emt 0:00:10]} 2. Nf3 {[%emt 0:00:08]} Nc6 {[%emt 0:00:08]} 3. Bb5 {[%emt 0:00:13]} a6 {[%emt 0:00:13]} 4. Bxc6 {[%emt 0:00:24]} dxc6 {[%emt 0:00:12]} 5. d4 {[%emt 0:00:09]} exd4 {[%emt 0:01:09]} 6. Qxd4 {[%emt 0:00:11]} Qxd4 {[%emt 0:00:18]} 7. Nxd4 {[%emt 0:00:09]} Bc5 {[%emt 0:00:24]} 8. Nb3 {[%emt 0:00:24]} Bb6 {[%emt 0:00:19]} 9. O-O {[%emt 0:01:36]} Nf6 {[%emt 0:00:34]} 10. Nc3 {[%emt 0:00:33]} O-O {[%emt 0:00:54]} 11. h3 {[%emt 0:09:22]} h6 {[%emt 0:00:12]} 12. Re1 {[%emt 0:00:33]} Be6 {[%emt 0:00:29]} 13. Be3 {[%emt 0:01:16]} Bxe3 {[%emt 0:00:38]} 14. Rxe3 {[%emt 0:00:14]} Bxb3 {[%emt 0:00:24]} 15. axb3 {[%emt 0:00:38]} Rad8 {[%emt 0:00:16]} 16. Kf1 {[%emt 0:01:02]} Rd2 {[%emt 0:00:30]} 17. Re2 {[%emt 0:01:09]} Rxe2 {[%emt 0:00:37]} 18. Kxe2 {[%emt 0:00:20]} Rd8 {[%emt 0:00:18]} 19. Rd1 {[%emt 0:05:23]} Rxd1 {[%emt 0:00:08]} 20. Kxd1 {[%emt 0:00:05]} Kf8 {[%emt 0:00:27]} 21. Ke2 {[%emt 0:00:20]} Ke7 {[%emt 0:00:07]} 22. Ke3 {[%emt 0:00:55]} Ke6 {[%emt 0:00:48]} 23. Ne2 {[%emt 0:01:52]} g6 {[%emt 0:03:40]} 24. Nf4+ {[%emt 0:00:42]} Kd6 {[%emt 0:01:41]} 25. Nd3 {[%emt 0:01:32]} Nd7 {[%emt 0:00:06]} 26. f4 {[%emt 0:01:06]} f6 {[%emt 0:01:36]} 27. Nf2 {[%emt 0:02:57]} h5 {[%emt 0:02:03]} 28. g4 {[%emt 0:07:05]} Nf8 {[%emt 0:02:38]} 29. Nd3 {[%emt 0:01:19]} Nd7 {[%emt 0:01:28]} 30. f5 {[%emt 0:04:41]} hxg4 {[%emt 0:06:20]} 31. fxg6 {[%emt 0:11:48]} Ke6 {[%emt 0:02:55]} 32. h4 {[%emt 0:01:32]} Ke7 {[%emt 0:00:47]} 33. Kf4 {[%emt 0:00:25]} g3 {[%emt 0:00:55]} 34. Kxg3 {[%emt 0:00:11]} Kf8 {[%emt 0:00:08]} 35. Kf4 {[%emt 0:00:18]} Kg7 {[%emt 0:00:29]} 36. Kf5 {[%emt 0:00:31]} b6 {[%emt 0:01:11]} 37. Nf4 {[%emt 0:00:28]} Nf8 {[%emt 0:00:49]} 38. h5 {[%emt 0:01:39]} c5 {[%emt 0:00:17]} 39. Nd5 {[%emt 0:04:43]} a5 {[%emt 0:00:58]} 40. Nxc7 {[%emt 0:00:20]} Nd7 {[%emt 0:00:29]} 41. Ne8+ {[%emt 0:30:42]} Kg8 {[%emt 0:30:38]} 42. Nxf6+ {[%emt 0:00:34]} 1-0

[Event "FIDE CB Open 2022"]
[Site "Ceske Budejovice"]
[Date "2022.07.06"]
[Round "6.50"]
[White "Hrbek, Jachym"]
[Black "Nagyova, Daniela"]
[Result "0-1"]
[ECO "C63"]
[WhiteElo "1695"]
[BlackElo "1712"]
[Annotator "NA RC COMBH"]
[PlyCount "28"]
[EventDate "2022.07.01"]
[EventType "swiss"]
[EventCountry "CZE"]
[SourceTitle "playchess.com"]
[Source "ChessBase"]
[SourceQuality "1"]
[TimeControl "40/5400+30:1800+30"]

1. e4 {[%emt 0:00:03]} e5 {[%emt 0:00:13]} 2. Nf3 {[%emt 0:00:06]} Nc6 {[%emt 0:00:08]} 3. Bb5 {[%emt 0:00:03]} f5 {[%emt 0:00:22]} 4. d3 {[%emt 0:00:05]} fxe4 {[%emt 0:00:14]} 5. dxe4 {[%emt 0:00:06]} Nf6 {[%emt 0:01:11]} 6. O-O {[%emt 0:00:27]} Bc5 {[%emt 0:00:51]} 7. Bxc6 {[%emt 0:00:59]} bxc6 {[%emt 0:00:43]} 8. Nxe5 {[%emt 0:00:35]} O-O {[%emt 0:03:10]} 9. Nc3 {[%emt 0:03:21]} Qe8 {[%emt 0:03:44]} 10. Nd3 {[%emt 0:02:40]} Bb6 {[%emt 0:04:18]} 11. Re1 {[%emt 0:09:04]} Qf7 {[%emt 0:06:37]} 12. Kh1 {[%emt 0:10:35]} Nh5 {[%emt 0:04:59]} 13. f3 {[%emt 0:09:08]} Ng3+ {[%emt 0:01:11]} 14. hxg3 {[%emt 0:00:36]} Qh5# {[%emt 0:00:04]} 0-1

[Event "FIDE CB Open 2022"]
[Site "Ceske Budejovice"]
[Date "2022.07.06"]
[Round "6.51"]
[White "Pavlicek, Petr"]
[Black "Jilek, Marcel"]
[Result "1-0"]
[ECO "E65"]
[WhiteElo "1806"]
[BlackElo "1565"]
[Annotator "NA RC COMBH"]
[PlyCount "53"]
[EventDate "2022.07.01"]
[EventType "swiss"]
[EventCountry "CZE"]
[SourceTitle "playchess.com"]
[Source "ChessBase"]
[SourceQuality "1"]
[TimeControl "40/5400+30:1800+30"]

1. d4 {[%emt 0:00:14]} Nf6 {[%emt 0:00:10]} 2. c4 {[%emt 0:00:07]} d6 {[%emt 0:00:15]} 3. g3 {[%emt 0:00:45]} g6 {[%emt 0:00:09]} 4. Bg2 {[%emt 0:00:08]} Bg7 {[%emt 0:00:03]} 5. Nf3 {[%emt 0:00:11]} O-O {[%emt 0:00:21]} 6. Nc3 {[%emt 0:00:04]} Nbd7 {[%emt 0:00:16]} 7. O-O {[%emt 0:00:30]} c5 {[%emt 0:00:42]} 8. d5 {[%emt 0:04:05]} Nb6 {[%emt 0:05:04]} 9. Qd3 {[%emt 0:02:34]} Bd7 {[%emt 0:06:41]} 10. h3 {[%emt 0:00:52]} Na4 {[%emt 0:04:32]} 11. Nxa4 {[%emt 0:04:02]} Bxa4 {[%emt 0:00:07]} 12. Bd2 {[%emt 0:00:38]} Bd7 {[%emt 0:01:48]} 13. e4 {[%emt 0:01:45]} a6 {[%emt 0:01:34]} 14. Bc3 {[%emt 0:08:19]} b5 {[%emt 0:00:27]} 15. b3 {[%emt 0:00:07]} b4 {[%emt 0:02:31]} 16. Bb2 {[%emt 0:00:08]} Qc8 {[%emt 0:01:18]} 17. g4 {[%emt 0:02:17]} h5 {[%emt 0:01:04]} 18. g5 {[%emt 0:02:21]} Ne8 {[%emt 0:00:18]} 19. Bxg7 {[%emt 0:00:14]} Nxg7 {[%emt 0:00:02]} 20. Kh2 {[%emt 0:02:06]} Qc7 {[%emt 0:05:24]} 21. Nh4 {[%emt 0:03:24]} e6 {[%emt 0:00:55]} 22. Rad1 {[%emt 0:07:30]} e5 {[%emt 0:01:30]} 23. f4 {[%emt 0:01:06]} exf4 {[%emt 0:00:38]} 24. Rxf4 {[%emt 0:00:17]} Rae8 {[%emt 0:01:01]} 25. Rdf1 {[%emt 0:00:22]} Qd8 {[%emt 0:03:43]} 26. Rf6 {[%emt 0:00:53]} Re7 {[%emt 0:04:22]} 27. Nxg6 {[%emt 0:05:01]} 1-0

[Event "FIDE CB Open 2022"]
[Site "Ceske Budejovice"]
[Date "2022.07.06"]
[Round "6.52"]
[White "Simajchl, Adam"]
[Black "Rybackova, Lucie"]
[Result "1-0"]
[ECO "D70"]
[WhiteElo "1610"]
[BlackElo "1696"]
[Annotator "NA RC COMBH"]
[PlyCount "91"]
[EventDate "2022.07.01"]
[EventType "swiss"]
[EventCountry "CZE"]
[SourceTitle "playchess.com"]
[Source "ChessBase"]
[SourceQuality "1"]
[TimeControl "40/5400+30:1800+30"]

1. d4 {[%emt 0:00:08]} Nf6 {[%emt 0:00:39]} 2. c4 {[%emt 0:00:08]} g6 {[%emt 0:00:21]} 3. f3 {[%emt 0:01:18]} d5 {[%emt 0:01:28]} 4. cxd5 {[%emt 0:00:10]} Nxd5 {[%emt 0:00:10]} 5. e4 {[%emt 0:00:01]} Nb6 {[%emt 0:01:13]} 6. Nc3 {[%emt 0:00:08]} Bg7 {[%emt 0:01:10]} 7. Be3 {[%emt 0:00:02]} O-O {[%emt 0:01:43]} 8. Qd2 {[%emt 0:00:04]} Nc6 {[%emt 0:06:09]} 9. O-O-O {[%emt 0:00:03]} f5 {[%emt 0:16:58]} 10. h4 {[%emt 0:00:38]} fxe4 {[%emt 0:01:50]} 11. h5 {[%emt 0:00:02]} e5 {[%emt 0:35:30]} 12. d5 {[%emt 0:01:52]} Ne7 {[%emt 0:03:05]} 13. hxg6 {[%emt 0:15:50]} Nxg6 {[%emt 0:07:33]} 14. fxe4 {[%emt 0:18:00]} Bg4 {[%emt 0:03:56]} 15. Re1 {[%emt 0:09:13]} Qe7 {[%emt 0:03:09]} 16. g3 {[%emt 0:10:36]} a5 {[%emt 0:03:43]} 17. Qh2 {[%emt 0:04:09]} Bf6 {[%emt 0:00:28]} 18. Bc5 {[%emt 0:00:04]} Bg5+ {[%emt 0:01:59]} 19. Kb1 {[%emt 0:00:37]} Qg7 {[%emt 0:00:43]} 20. Bxf8 {[%emt 0:02:34]} Rxf8 {[%emt 0:00:15]} 21. Bh3 {[%emt 0:01:30]} Bxh3 {[%emt 0:01:46]} 22. Qxh3 {[%emt 0:00:54]} Bd2 {[%emt 0:02:30]} 23. Rf1 {[%emt 0:13:05]} Rxf1+ {[%emt 0:02:25]} 24. Qxf1 {[%emt 0:00:02]} Bxc3 {[%emt 0:02:15]} 25. bxc3 {[%emt 0:00:26]} Qd7 {[%emt 0:00:45]} 26. Qe2 {[%emt 0:08:24]} Na4 {[%emt 0:00:40]} 27. Qc4 {[%emt 0:02:11]} b5 {[%emt 0:00:34]} 28. Qd3 {[%emt 0:06:11]} Qg4 {[%emt 0:00:31]} 29. Kc2 {[%emt 0:02:59]} Nc5 {[%emt 0:00:34]} 30. Qf3 {[%emt 0:00:01]} Qxf3 {[%emt 0:00:17]} 31. Nxf3 {[%emt 0:00:01]} Nxe4 {[%emt 0:00:09]} 32. Nxe5 {[%emt 0:01:40]} Nxe5 {[%emt 0:01:06]} 33. Re1 {[%emt 0:00:12]} Nxg3 {[%emt 0:00:19]} 34. Rxe5 {[%emt 0:00:15]} Kf7 {[%emt 0:00:20]} 35. Kd3 {[%emt 0:00:21]} Kf6 {[%emt 0:00:33]} 36. Re6+ {[%emt 0:00:49]} Kf7 {[%emt 0:00:48]} 37. Rc6 {[%emt 0:00:24]} h5 {[%emt 0:00:22]} 38. Rxc7+ {[%emt 0:00:34]} Ke8 {[%emt 0:00:05]} 39. Kd4 {[%emt 0:02:24]} h4 {[%emt 0:00:31]} 40. Rh7 {[%emt 0:00:17]} Ne2+ {[%emt 0:00:12]} 41. Ke5 {[%emt 0:32:06]} Kd8 {[%emt 0:04:58]} 42. Kd6 {[%emt 0:00:00]} Kc8 {[%emt 0:00:54]} 43. Kc6 {[%emt 0:00:00]} Kb8 {[%emt 0:00:59]} 44. d6 {[%emt 0:00:00]} Nf4 {[%emt 0:00:17]} 45. d7 {[%emt 0:00:00]} Ne6 {[%emt 0:00:10]} 46. Rh8+ {[%emt 0:00:00]} 1-0

[Event "FIDE CB Open 2022"]
[Site "Ceske Budejovice"]
[Date "2022.07.06"]
[Round "6.53"]
[White "Svejda, Karel"]
[Black "Huemer, Gerald"]
[Result "1-0"]
[ECO "A46"]
[WhiteElo "1619"]
[BlackElo "1627"]
[Annotator "NA RC COMBH"]
[PlyCount "59"]
[EventDate "2022.07.01"]
[EventType "swiss"]
[EventCountry "CZE"]
[SourceTitle "playchess.com"]
[Source "ChessBase"]
[SourceQuality "1"]
[TimeControl "40/5400+30:1800+30"]

1. d4 {[%emt 0:00:10]} Nf6 {[%emt 0:00:05]} 2. Nf3 {[%emt 0:00:08]} e6 {[%emt 0:00:18]} 3. Bf4 {[%emt 0:00:10]} c5 {[%emt 0:00:36]} 4. e3 {[%emt 0:00:13]} cxd4 {[%emt 0:00:05]} 5. exd4 {[%emt 0:00:08]} d6 {[%emt 0:00:04]} 6. c4 {[%emt 0:02:00]} Nbd7 {[%emt 0:02:35]} 7. Nc3 {[%emt 0:01:05]} a6 {[%emt 0:00:04]} 8. Bd3 {[%emt 0:00:34]} Be7 {[%emt 0:00:02]} 9. h3 {[%emt 0:00:57]} b6 {[%emt 0:00:11]} 10. O-O {[%emt 0:01:15]} O-O {[%emt 0:00:10]} 11. Re1 {[%emt 0:01:24]} Bb7 {[%emt 0:00:18]} 12. b4 {[%emt 0:10:18]} Rc8 {[%emt 0:01:00]} 13. Qb3 {[%emt 0:04:16]} Re8 {[%emt 0:00:53]} 14. a4 {[%emt 0:04:25]} Qc7 {[%emt 0:01:00]} 15. Bh2 {[%emt 0:18:06]} Bf8 {[%emt 0:04:55]} 16. Nd2 {[%emt 0:05:47]} Qc6 {[%emt 0:01:19]} 17. Nce4 {[%emt 0:05:18]} Kh8 {[%emt 0:12:25]} 18. f3 {[%emt 0:02:42]} Ba8 {[%emt 0:15:33]} 19. a5 {[%emt 0:09:11]} bxa5 {[%emt 0:07:57]} 20. Rxa5 {[%emt 0:00:16]} Nxe4 {[%emt 0:02:02]} 21. Nxe4 {[%emt 0:02:03]} d5 {[%emt 0:00:20]} 22. Nc5 {[%emt 0:01:08]} Bb7 {[%emt 0:17:41]} 23. Rea1 {[%emt 0:04:35]} Ra8 {[%emt 0:04:14]} 24. Nxb7 {[%emt 0:02:10]} dxc4 {[%emt 0:03:30]} 25. Qxc4 {[%emt 0:06:00]} Qxb7 {[%emt 0:00:08]} 26. Rxa6 {[%emt 0:02:15]} Rxa6 {[%emt 0:00:16]} 27. Rxa6 {[%emt 0:00:12]} Qxb4 {[%emt 0:00:20]} 28. Qxb4 {[%emt 0:00:23]} Bxb4 {[%emt 0:00:06]} 29. Bb5 {[%emt 0:00:18]} Nb8 {[%emt 0:09:59]} 30. Ra8 {[%emt 0:00:21]} 1-0